[Event "Titled Tuesday Blitz September 21 2021"]
[White "Krasilnikov, Evgeni"]
[Black "Krysa, Leandro"]
[WhiteFideId "4139739"]
[BlackFideId "116807"]
[WhiteElo "2295"]
[BlackElo "2490"]
[Result "0-1"]
[Round "05"]
[TimeControl "180+1"]
[Date "2021.09.21"]
[WhiteClock "0:00:05"]
[BlackClock "0:00:04"]

1. e4 {[%clk 0:03:00]}  c5 {[%clk 0:03:00]} 2. c3 {[%clk 0:03:00]}  Nf6 {[%clk 0:02:59]} 3. e5 {[%clk 0:03:00]}  Nd5 {[%clk 0:02:59]} 4. d4 {[%clk 0:03:00]}  cxd4 {[%clk 0:02:59]} 5. Nf3 {[%clk 0:03:00]}  Nc6 {[%clk 0:02:58]} 6. Bc4 {[%clk 0:03:00]}  Nb6 {[%clk 0:02:57]} 7. Bb3 {[%clk 0:03:00]}  d6 {[%clk 0:02:56]} 8. exd6 {[%clk 0:02:59]}  Qxd6 {[%clk 0:02:55]} 9. O-O {[%clk 0:03:00]}  Bf5 {[%clk 0:02:51]} 10. Nxd4 {[%clk 0:02:57]}  Nxd4 {[%clk 0:02:48]} 11. cxd4 {[%clk 0:02:57]}  e6 {[%clk 0:02:46]} 12. Qf3 {[%clk 0:02:48]}  Be7 {[%clk 0:02:46]} 13. Qxb7 {[%clk 0:02:39]}  O-O {[%clk 0:02:45]} 14. Nc3 {[%clk 0:02:33]}  Bf6 {[%clk 0:02:38]} 15. Be3 {[%clk 0:02:29]}  h5 {[%clk 0:02:08]} 16. Rad1 {[%clk 0:02:25]}  Rfb8 {[%clk 0:02:02]} 17. Qa6 {[%clk 0:02:16]}  Nc8 {[%clk 0:01:53]} 18. Qe2 {[%clk 0:02:03]}  Bg4 {[%clk 0:01:49]} 19. f3 {[%clk 0:02:01]}  Bf5 {[%clk 0:01:50]} 20. d5 {[%clk 0:01:58]}  e5 {[%clk 0:01:45]} 21. Ne4 {[%clk 0:01:53]}  Qd8 {[%clk 0:01:31]} 22. d6 {[%clk 0:01:34]}  Nb6 {[%clk 0:01:23]} 23. Qf2 {[%clk 0:01:11]}  Rc8 {[%clk 0:01:12]} 24. Nxf6+ {[%clk 0:00:46]}  Qxf6 {[%clk 0:01:11]} 25. Qe2 {[%clk 0:00:36]}  Rab8 {[%clk 0:00:58]} 26. Rd2 {[%clk 0:00:33]}  h4 {[%clk 0:00:56]} 27. h3 {[%clk 0:00:32]}  a5 {[%clk 0:00:51]} 28. Rfd1 {[%clk 0:00:28]}  Nd7 {[%clk 0:00:51]} 29. Ba4 {[%clk 0:00:19]}  Rb4 {[%clk 0:00:43]} 30. Bxd7 {[%clk 0:00:17]}  Bxd7 {[%clk 0:00:44]} 31. b3 {[%clk 0:00:17]}  a4 {[%clk 0:00:42]} 32. bxa4 {[%clk 0:00:16]}  Rxa4 {[%clk 0:00:42]} 33. Rc2 {[%clk 0:00:16]}  Rca8 {[%clk 0:00:32]} 34. Rdc1 {[%clk 0:00:14]}  Qg6 {[%clk 0:00:30]} 35. Kh2 {[%clk 0:00:13]}  Qg3+ {[%clk 0:00:27]} 36. Kh1 {[%clk 0:00:13]}  R4a6 {[%clk 0:00:23]} 37. Qf2 {[%clk 0:00:12]}  Rxd6 {[%clk 0:00:19]} 38. Qxg3 {[%clk 0:00:11]}  hxg3 {[%clk 0:00:20]} 39. Kg1 {[%clk 0:00:11]}  Be6 {[%clk 0:00:18]} 40. Kf1 {[%clk 0:00:10]}  Bxa2 {[%clk 0:00:16]} 41. Ke2 {[%clk 0:00:08]}  Be6 {[%clk 0:00:14]} 42. Rd2 {[%clk 0:00:07]}  Rda6 {[%clk 0:00:12]} 43. Rcd1 {[%clk 0:00:07]}  Kh7 {[%clk 0:00:10]} 44. Ke1 {[%clk 0:00:07]}  f5 {[%clk 0:00:08]} 45. Rd8 {[%clk 0:00:06]}  Rxd8 {[%clk 0:00:07]} 46. Rxd8 {[%clk 0:00:07]}  f4 {[%clk 0:00:07]} 47. Bd2 {[%clk 0:00:07]}  Ra1+ {[%clk 0:00:05]} 48. Ke2 {[%clk 0:00:07]}  Bc4+ {[%clk 0:00:04]} 49. Rd3 {[%clk 0:00:05]}  Ra3 {[%clk 0:00:04]} 0-1


[Site "https://www.chess.com"]

[Event "Titled Tuesday Blitz September 21 2021"]
[White "Kubatko, Ivan"]
[Black "Petriashvili, Nikoloz"]
[WhiteFideId "24111473"]
[BlackFideId "13611216"]
[WhiteElo "2285"]
[BlackElo "2430"]
[Result "0-1"]
[Round "05"]
[TimeControl "180+1"]
[Date "2021.09.21"]
[WhiteClock "0:00:03"]
[BlackClock "0:01:25"]

1. e4 {[%clk 0:03:00]}  c5 {[%clk 0:02:50]} 2. c3 {[%clk 0:03:00]}  Nf6 {[%clk 0:02:49]} 3. e5 {[%clk 0:03:00]}  Nd5 {[%clk 0:02:50]} 4. d4 {[%clk 0:02:59]}  cxd4 {[%clk 0:02:49]} 5. cxd4 {[%clk 0:03:00]}  d6 {[%clk 0:02:49]} 6. Nf3 {[%clk 0:02:58]}  Nc6 {[%clk 0:02:48]} 7. Bc4 {[%clk 0:02:58]}  dxe5 {[%clk 0:02:48]} 8. dxe5 {[%clk 0:02:55]}  Ndb4 {[%clk 0:02:48]} 9. Qe2 {[%clk 0:02:47]}  Bf5 {[%clk 0:02:21]} 10. O-O {[%clk 0:02:12]}  e6 {[%clk 0:02:21]} 11. Bg5 {[%clk 0:01:47]}  Be7 {[%clk 0:02:03]} 12. Bxe7 {[%clk 0:01:46]}  Qxe7 {[%clk 0:02:02]} 13. Nc3 {[%clk 0:01:41]}  O-O {[%clk 0:01:53]} 14. Rad1 {[%clk 0:01:37]}  Rfd8 {[%clk 0:01:52]} 15. Ne4 {[%clk 0:01:12]}  Bg4 {[%clk 0:01:42]} 16. a3 {[%clk 0:00:46]}  Bxf3 {[%clk 0:01:41]} 17. gxf3 {[%clk 0:00:32]}  Nd5 {[%clk 0:01:41]} 18. Ng3 {[%clk 0:00:21]}  Nf4 {[%clk 0:01:39]} 19. Qe4 {[%clk 0:00:19]}  Qg5 {[%clk 0:01:38]} 20. Rfe1 {[%clk 0:00:06]}  h5 {[%clk 0:01:24]} 21. Kh1 {[%clk 0:00:03]}  h4 {[%clk 0:01:25]} 0-1


[Site "https://www.chess.com"]

[Event "Titled Tuesday Blitz September 21 2021"]
[White "Kucuksari, Kaan"]
[Black "Petrovskyi, Vadym"]
[WhiteFideId "6380166"]
[BlackFideId "14165210"]
[WhiteElo "2301"]
[BlackElo "2334"]
[Result "1-0"]
[Round "05"]
[TimeControl "180+1"]
[Date "2021.09.21"]
[WhiteClock "0:00:13"]
[BlackClock "0:00:19"]

1. d4 {[%clk 0:03:00]}  Nf6 {[%clk 0:02:59]} 2. c4 {[%clk 0:03:00]}  g6 {[%clk 0:02:59]} 3. g3 {[%clk 0:03:00]}  Bg7 {[%clk 0:03:00]} 4. Bg2 {[%clk 0:03:01]}  O-O {[%clk 0:03:00]} 5. Nc3 {[%clk 0:03:01]}  d6 {[%clk 0:03:00]} 6. Nf3 {[%clk 0:03:01]}  Nbd7 {[%clk 0:03:00]} 7. O-O {[%clk 0:03:01]}  e5 {[%clk 0:03:00]} 8. b3 {[%clk 0:03:01]}  Re8 {[%clk 0:02:58]} 9. Bb2 {[%clk 0:02:58]}  c6 {[%clk 0:02:59]} 10. Qc2 {[%clk 0:02:54]}  a5 {[%clk 0:02:55]} 11. Rfd1 {[%clk 0:02:48]}  Qb6 {[%clk 0:02:54]} 12. c5 {[%clk 0:02:43]}  dxc5 {[%clk 0:02:45]} 13. dxe5 {[%clk 0:02:43]}  Ng4 {[%clk 0:02:43]} 14. Na4 {[%clk 0:02:24]}  Qa7 {[%clk 0:02:35]} 15. Rxd7 {[%clk 0:01:54]}  Bxd7 {[%clk 0:02:31]} 16. Nxc5 {[%clk 0:01:54]}  Rad8 {[%clk 0:01:49]} 17. Rd1 {[%clk 0:00:59]}  Bf5 {[%clk 0:01:47]} 18. Rxd8 {[%clk 0:00:57]}  Rxd8 {[%clk 0:01:48]} 19. e4 {[%clk 0:00:58]}  Bc8 {[%clk 0:01:32]} 20. h3 {[%clk 0:00:53]}  Nh6 {[%clk 0:01:26]} 21. Bc1 {[%clk 0:00:48]}  Kh8 {[%clk 0:01:22]} 22. Bg5 {[%clk 0:00:44]}  Re8 {[%clk 0:01:22]} 23. Bf6 {[%clk 0:00:38]}  Ng8 {[%clk 0:01:20]} 24. Qc3 {[%clk 0:00:28]}  Be6 {[%clk 0:01:15]} 25. Ng5 {[%clk 0:00:27]}  b6 {[%clk 0:01:13]} 26. Ncxe6 {[%clk 0:00:22]}  fxe6 {[%clk 0:01:14]} 27. Bxg7+ {[%clk 0:00:20]}  Qxg7 {[%clk 0:01:09]} 28. Qxc6 {[%clk 0:00:21]}  Qe7 {[%clk 0:01:09]} 29. h4 {[%clk 0:00:19]}  h6 {[%clk 0:01:10]} 30. Nh3 {[%clk 0:00:17]}  Rb8 {[%clk 0:00:54]} 31. Nf4 {[%clk 0:00:16]}  Qf7 {[%clk 0:00:50]} 32. Bh3 {[%clk 0:00:12]}  Ne7 {[%clk 0:00:47]} 33. Qc7 {[%clk 0:00:11]}  Re8 {[%clk 0:00:42]} 34. Bxe6 {[%clk 0:00:11]}  Qf8 {[%clk 0:00:38]} 35. Bd5 {[%clk 0:00:10]}  g5 {[%clk 0:00:28]} 36. hxg5 {[%clk 0:00:07]}  hxg5 {[%clk 0:00:28]} 37. Ne6 {[%clk 0:00:08]}  Qf3 {[%clk 0:00:21]} 38. Qd7 {[%clk 0:00:08]}  Rc8 {[%clk 0:00:21]} 39. Nc7 {[%clk 0:00:06]}  Qf8 {[%clk 0:00:17]} 40. Be6 {[%clk 0:00:07]}  Rd8 {[%clk 0:00:17]} 41. Qb5 {[%clk 0:00:06]}  Rd2 {[%clk 0:00:14]} 42. Qf1 {[%clk 0:00:04]}  Qf3 {[%clk 0:00:14]} 43. Qh3+ {[%clk 0:00:03]}  Kg7 {[%clk 0:00:13]} 44. Ne8+ {[%clk 0:00:04]}  Kf8 {[%clk 0:00:13]} 45. Qh8+ {[%clk 0:00:04]}  Ng8 {[%clk 0:00:14]} 46. Qxg8+ {[%clk 0:00:05]}  Ke7 {[%clk 0:00:15]} 47. Qxg5+ {[%clk 0:00:03]}  Kxe6 {[%clk 0:00:13]} 48. Ng7+ {[%clk 0:00:03]}  Kf7 {[%clk 0:00:13]} 49. Qxd2 {[%clk 0:00:04]}  Kxg7 {[%clk 0:00:13]} 50. Qf4 {[%clk 0:00:05]}  Qd1+ {[%clk 0:00:13]} 51. Kg2 {[%clk 0:00:05]}  Qc2 {[%clk 0:00:14]} 52. Qg5+ {[%clk 0:00:06]}  Kf8 {[%clk 0:00:14]} 53. Qf6+ {[%clk 0:00:06]}  Ke8 {[%clk 0:00:14]} 54. Qf4 {[%clk 0:00:07]}  Qxa2 {[%clk 0:00:14]} 55. Qe3 {[%clk 0:00:08]}  Qc2 {[%clk 0:00:13]} 56. Qf3 {[%clk 0:00:08]}  Ke7 {[%clk 0:00:13]} 57. Qf4 {[%clk 0:00:08]}  b5 {[%clk 0:00:12]} 58. g4 {[%clk 0:00:09]}  a4 {[%clk 0:00:12]} 59. b4 {[%clk 0:00:09]}  a3 {[%clk 0:00:12]} 60. Qf6+ {[%clk 0:00:10]}  Ke8 {[%clk 0:00:12]} 61. e6 {[%clk 0:00:11]}  Qc7 {[%clk 0:00:11]} 62. Qh8+ {[%clk 0:00:09]}  Ke7 {[%clk 0:00:11]} 63. Qg7+ {[%clk 0:00:10]}  Kd6 {[%clk 0:00:12]} 64. Qf6 {[%clk 0:00:08]}  Qe7 {[%clk 0:00:12]} 65. e5+ {[%clk 0:00:07]}  Kd5 {[%clk 0:00:11]} 66. Qxe7 {[%clk 0:00:08]}  a2 {[%clk 0:00:11]} 67. Qa7 {[%clk 0:00:08]}  Kxe6 {[%clk 0:00:12]} 68. Qxa2+ {[%clk 0:00:09]}  Kxe5 {[%clk 0:00:13]} 69. Qe2+ {[%clk 0:00:10]}  Kf4 {[%clk 0:00:14]} 70. Qxb5 {[%clk 0:00:10]}  Kxg4 {[%clk 0:00:14]} 71. Qc5 {[%clk 0:00:11]}  Kh4 {[%clk 0:00:15]} 72. b5 {[%clk 0:00:11]}  Kg4 {[%clk 0:00:16]} 73. b6 {[%clk 0:00:12]}  Kh4 {[%clk 0:00:17]} 74. b7 {[%clk 0:00:13]}  Kg4 {[%clk 0:00:18]} 75. b8=Q {[%clk 0:00:14]}  Kh4 {[%clk 0:00:19]} 76. Qh8+ {[%clk 0:00:13]}  Kg4 {[%clk 0:00:19]} 77. Qcd4+ {[%clk 0:00:13]}  Kf5 {[%clk 0:00:19]} 78. Qde5+ {[%clk 0:00:12]}  Kg6 {[%clk 0:00:19]} 79. Qhg7# {[%clk 0:00:13]} 1-0


[Site "https://www.chess.com"]

[Event "Titled Tuesday Blitz September 21 2021"]
[White "Kumala, Aleksander"]
[Black "Berezin, Viktor"]
[WhiteFideId "1141880"]
[BlackFideId "14107872"]
[WhiteElo "2269"]
[BlackElo "2310"]
[Result "1-0"]
[Round "05"]
[TimeControl "180+1"]
[Date "2021.09.21"]
[WhiteClock "0:00:30"]
[BlackClock "0:00:19"]

1. d4 {[%clk 0:02:59]}  Nf6 {[%clk 0:02:59]} 2. Bg5 {[%clk 0:02:59]}  d6 {[%clk 0:02:57]} 3. Nc3 {[%clk 0:02:56]}  h6 {[%clk 0:02:55]} 4. Bh4 {[%clk 0:02:50]}  Bf5 {[%clk 0:02:51]} 5. f3 {[%clk 0:02:43]}  e5 {[%clk 0:02:41]} 6. e4 {[%clk 0:02:41]}  Be6 {[%clk 0:02:37]} 7. d5 {[%clk 0:02:36]}  Bc8 {[%clk 0:02:36]} 8. g4 {[%clk 0:02:24]}  Be7 {[%clk 0:02:36]} 9. Bg3 {[%clk 0:02:21]}  c5 {[%clk 0:02:36]} 10. Nge2 {[%clk 0:02:15]}  a6 {[%clk 0:02:24]} 11. a4 {[%clk 0:02:15]}  Nxg4 {[%clk 0:02:15]} 12. fxg4 {[%clk 0:02:13]}  Bxg4 {[%clk 0:02:16]} 13. Bg2 {[%clk 0:02:11]}  h5 {[%clk 0:02:15]} 14. h3 {[%clk 0:02:08]}  Bd7 {[%clk 0:02:13]} 15. O-O {[%clk 0:02:08]}  Bg5 {[%clk 0:02:09]} 16. Qd3 {[%clk 0:02:03]}  Qe7 {[%clk 0:02:08]} 17. Nc1 {[%clk 0:01:53]}  O-O {[%clk 0:02:06]} 18. Nb3 {[%clk 0:01:52]}  Bc8 {[%clk 0:01:56]} 19. Nd2 {[%clk 0:01:48]}  Nd7 {[%clk 0:01:56]} 20. Nc4 {[%clk 0:01:47]}  b6 {[%clk 0:01:48]} 21. Kh2 {[%clk 0:01:43]}  Rb8 {[%clk 0:01:48]} 22. Rf2 {[%clk 0:01:35]}  h4 {[%clk 0:01:46]} 23. Kh1 {[%clk 0:01:20]}  hxg3 {[%clk 0:01:29]} 24. Qxg3 {[%clk 0:01:21]}  Bh4 {[%clk 0:01:26]} 25. Qf3 {[%clk 0:01:18]}  Bxf2 {[%clk 0:01:26]} 26. Qxf2 {[%clk 0:01:19]}  Nf6 {[%clk 0:01:24]} 27. Rg1 {[%clk 0:01:18]}  Nh5 {[%clk 0:01:17]} 28. Ne2 {[%clk 0:01:16]}  f5 {[%clk 0:01:15]} 29. Qf3 {[%clk 0:01:09]}  Nf6 {[%clk 0:00:58]} 30. exf5 {[%clk 0:01:05]}  e4 {[%clk 0:00:58]} 31. Qf4 {[%clk 0:01:04]}  Nxd5 {[%clk 0:00:57]} 32. Qg4 {[%clk 0:00:59]}  Bxf5 {[%clk 0:00:54]} 33. Qg3 {[%clk 0:00:59]}  Rbd8 {[%clk 0:00:50]} 34. h4 {[%clk 0:00:46]}  b5 {[%clk 0:00:48]} 35. axb5 {[%clk 0:00:46]}  axb5 {[%clk 0:00:49]} 36. Nd2 {[%clk 0:00:44]}  Nf6 {[%clk 0:00:42]} 37. Qg5 {[%clk 0:00:40]}  Bh7 {[%clk 0:00:29]} 38. Nf4 {[%clk 0:00:40]}  Kh8 {[%clk 0:00:21]} 39. Bh3 {[%clk 0:00:39]}  e3 {[%clk 0:00:19]} 40. Nf3 {[%clk 0:00:36]}  Be4 {[%clk 0:00:19]} 41. Ng6+ {[%clk 0:00:29]}  Bxg6 {[%clk 0:00:19]} 42. Qxg6 {[%clk 0:00:30]}  Qe4 {[%clk 0:00:19]} 43. Qxg7# {[%clk 0:00:30]} 1-0


[Site "https://www.chess.com"]

[Event "Titled Tuesday Blitz September 21 2021"]
[White "Kwon, Sehyun"]
[Black "LEGENYA1998"]
[WhiteFideId "13203088"]
[WhiteElo "1778"]
[BlackElo "2431"]
[Result "1-0"]
[Round "05"]
[TimeControl "180+1"]
[Date "2021.09.21"]
[WhiteClock "0:00:07"]
[BlackClock "0:00:20"]

1. Nf3 {[%clk 0:03:00]}  Nf6 {[%clk 0:02:59]} 2. c4 {[%clk 0:03:01]}  c6 {[%clk 0:02:56]} 3. g3 {[%clk 0:02:55]}  d5 {[%clk 0:02:54]} 4. Bg2 {[%clk 0:02:49]}  e6 {[%clk 0:02:55]} 5. O-O {[%clk 0:02:46]}  Nbd7 {[%clk 0:02:54]} 6. b3 {[%clk 0:02:40]}  Bd6 {[%clk 0:02:52]} 7. Bb2 {[%clk 0:02:33]}  Qe7 {[%clk 0:02:52]} 8. Nc3 {[%clk 0:02:28]}  O-O {[%clk 0:02:47]} 9. Qc2 {[%clk 0:02:28]}  a6 {[%clk 0:02:41]} 10. d4 {[%clk 0:02:28]}  b5 {[%clk 0:02:38]} 11. e4 {[%clk 0:02:24]}  b4 {[%clk 0:02:29]} 12. e5 {[%clk 0:02:16]}  bxc3 {[%clk 0:02:29]} 13. exd6 {[%clk 0:02:15]}  Qxd6 {[%clk 0:02:29]} 14. Bxc3 {[%clk 0:02:13]}  Ne4 {[%clk 0:02:29]} 15. Bb2 {[%clk 0:02:12]}  a5 {[%clk 0:02:28]} 16. Ne5 {[%clk 0:02:06]}  f5 {[%clk 0:02:15]} 17. a4 {[%clk 0:01:49]}  Nxe5 {[%clk 0:02:08]} 18. dxe5 {[%clk 0:01:47]}  Qd7 {[%clk 0:02:06]} 19. Rfd1 {[%clk 0:01:44]}  Qf7 {[%clk 0:01:56]} 20. Ba3 {[%clk 0:01:35]}  Re8 {[%clk 0:01:50]} 21. h4 {[%clk 0:01:14]}  f4 {[%clk 0:01:42]} 22. Bxe4 {[%clk 0:01:13]}  dxe4 {[%clk 0:01:41]} 23. Qxe4 {[%clk 0:01:12]}  fxg3 {[%clk 0:01:30]} 24. fxg3 {[%clk 0:01:13]}  Bb7 {[%clk 0:01:21]} 25. Rf1 {[%clk 0:01:11]}  Qg6 {[%clk 0:01:17]} 26. Qxg6 {[%clk 0:01:02]}  hxg6 {[%clk 0:01:17]} 27. Rad1 {[%clk 0:01:02]}  Rad8 {[%clk 0:01:17]} 28. Bc5 {[%clk 0:01:02]}  Ba6 {[%clk 0:01:00]} 29. Rfe1 {[%clk 0:00:51]}  Rb8 {[%clk 0:00:59]} 30. Re3 {[%clk 0:00:47]}  Rb7 {[%clk 0:00:59]} 31. Rd6 {[%clk 0:00:45]}  Rf7 {[%clk 0:00:52]} 32. Rxc6 {[%clk 0:00:26]}  Bb7 {[%clk 0:00:52]} 33. Rb6 {[%clk 0:00:23]}  Bf3 {[%clk 0:00:51]} 34. Bd6 {[%clk 0:00:20]}  Bg4 {[%clk 0:00:49]} 35. Kg2 {[%clk 0:00:18]}  Rc8 {[%clk 0:00:44]} 36. c5 {[%clk 0:00:18]}  Kh7 {[%clk 0:00:39]} 37. c6 {[%clk 0:00:18]}  g5 {[%clk 0:00:39]} 38. c7 {[%clk 0:00:16]}  Rfxc7 {[%clk 0:00:32]} 39. Bxc7 {[%clk 0:00:17]}  Rxc7 {[%clk 0:00:32]} 40. Rd3 {[%clk 0:00:11]}  Rc2+ {[%clk 0:00:31]} 41. Kg1 {[%clk 0:00:11]}  gxh4 {[%clk 0:00:32]} 42. gxh4 {[%clk 0:00:11]}  Kg6 {[%clk 0:00:33]} 43. Rbd6 {[%clk 0:00:08]}  Bf5 {[%clk 0:00:32]} 44. Rd2 {[%clk 0:00:04]}  Rc1+ {[%clk 0:00:32]} 45. Kf2 {[%clk 0:00:04]}  Rc3 {[%clk 0:00:31]} 46. Rb6 {[%clk 0:00:04]}  Be4 {[%clk 0:00:30]} 47. Rd4 {[%clk 0:00:04]}  Bd5 {[%clk 0:00:30]} 48. Rb5 {[%clk 0:00:04]}  Kf5 {[%clk 0:00:30]} 49. Rxa5 {[%clk 0:00:04]}  Rxb3 {[%clk 0:00:29]} 50. Rd2 {[%clk 0:00:02]}  Kxe5 {[%clk 0:00:29]} 51. Ra7 {[%clk 0:00:02]}  Rf3+ {[%clk 0:00:28]} 52. Ke1 {[%clk 0:00:02]}  Rh3 {[%clk 0:00:26]} 53. a5 {[%clk 0:00:02]}  Rxh4 {[%clk 0:00:27]} 54. Rxg7 {[%clk 0:00:02]}  Ra4 {[%clk 0:00:26]} 55. Re2+ {[%clk 0:00:02]}  Kd6 {[%clk 0:00:26]} 56. Ra7 {[%clk 0:00:03]}  Bc4 {[%clk 0:00:24]} 57. Rb2 {[%clk 0:00:02]}  e5 {[%clk 0:00:22]} 58. Kd2 {[%clk 0:00:03]}  Kc5 {[%clk 0:00:21]} 59. Rc7+ {[%clk 0:00:02]}  Kd4 {[%clk 0:00:21]} 60. Rd7+ {[%clk 0:00:02]}  Ke4 {[%clk 0:00:22]} 61. Rc7 {[%clk 0:00:02]}  Bd5 {[%clk 0:00:20]} 62. Rc5 {[%clk 0:00:03]}  Rd4+ {[%clk 0:00:20]} 63. Kc3 {[%clk 0:00:03]}  Ra4 {[%clk 0:00:20]} 64. Rb4+ {[%clk 0:00:03]}  Rxb4 {[%clk 0:00:21]} 65. Kxb4 {[%clk 0:00:04]}  Ba8 {[%clk 0:00:21]} 66. Rc8 {[%clk 0:00:04]}  Bd5 {[%clk 0:00:20]} 67. a6 {[%clk 0:00:04]}  Kf4 {[%clk 0:00:20]} 68. Rd8 {[%clk 0:00:04]}  Bc6 {[%clk 0:00:19]} 69. Rd6 {[%clk 0:00:04]}  Bh1 {[%clk 0:00:19]} 70. a7 {[%clk 0:00:05]}  Ba8 {[%clk 0:00:18]} 71. Rd8 {[%clk 0:00:05]}  Bc6 {[%clk 0:00:18]} 72. a8=Q {[%clk 0:00:05]}  Bxa8 {[%clk 0:00:18]} 73. Rxa8 {[%clk 0:00:06]}  e4 {[%clk 0:00:19]} 74. Kc3 {[%clk 0:00:06]}  e3 {[%clk 0:00:19]} 75. Kd3 {[%clk 0:00:07]}  Kf3 {[%clk 0:00:20]} 76. Re8 {[%clk 0:00:07]} 1-0


[Site "https://www.chess.com"]

[Event "Titled Tuesday Blitz September 21 2021"]
[White "Lashkin, Jegor"]
[Black "Perez Gormaz, Matias"]
[WhiteFideId "13907808"]
[BlackFideId "3406342"]
[WhiteElo "2293"]
[BlackElo "2352"]
[Result "1-0"]
[Round "05"]
[TimeControl "180+1"]
[Date "2021.09.21"]
[WhiteClock "0:00:01"]
[BlackClock "0:00:02"]

1. a3 {[%clk 0:03:00]}  d5 {[%clk 0:02:56]} 2. Nf3 {[%clk 0:02:59]}  Bf5 {[%clk 0:02:54]} 3. e3 {[%clk 0:02:58]}  e6 {[%clk 0:02:54]} 4. d4 {[%clk 0:02:58]}  Nf6 {[%clk 0:02:52]} 5. Bd3 {[%clk 0:02:56]}  Bg6 {[%clk 0:02:51]} 6. O-O {[%clk 0:02:55]}  Nbd7 {[%clk 0:02:50]} 7. b3 {[%clk 0:02:54]}  Bd6 {[%clk 0:02:46]} 8. Bb2 {[%clk 0:02:54]}  Qe7 {[%clk 0:02:45]} 9. c4 {[%clk 0:02:51]}  c6 {[%clk 0:02:44]} 10. Nc3 {[%clk 0:02:46]}  Rd8 {[%clk 0:02:40]} 11. Qc2 {[%clk 0:02:42]}  e5 {[%clk 0:02:04]} 12. dxe5 {[%clk 0:01:55]}  Nxe5 {[%clk 0:02:04]} 13. Nxe5 {[%clk 0:01:54]}  Qxe5 {[%clk 0:02:03]} 14. g3 {[%clk 0:01:52]}  dxc4 {[%clk 0:01:58]} 15. bxc4 {[%clk 0:01:37]}  Qh5 {[%clk 0:01:56]} 16. Ne4 {[%clk 0:01:30]}  Ng4 {[%clk 0:01:38]} 17. f3 {[%clk 0:01:19]}  Ne5 {[%clk 0:00:53]} 18. Nxd6+ {[%clk 0:00:59]}  Rxd6 {[%clk 0:00:53]} 19. Bxg6 {[%clk 0:00:55]}  hxg6 {[%clk 0:00:48]} 20. g4 {[%clk 0:00:52]}  Qg5 {[%clk 0:00:38]} 21. Qg2 {[%clk 0:00:40]}  Nxc4 {[%clk 0:00:29]} 22. Bd4 {[%clk 0:00:26]}  c5 {[%clk 0:00:22]} 23. f4 {[%clk 0:00:21]}  Qd5 {[%clk 0:00:22]} 24. Qxd5 {[%clk 0:00:17]}  Rxd5 {[%clk 0:00:22]} 25. Bxg7 {[%clk 0:00:14]}  Rh3 {[%clk 0:00:23]} 26. Rfe1 {[%clk 0:00:11]}  Kd7 {[%clk 0:00:20]} 27. Rad1 {[%clk 0:00:11]}  Rxd1 {[%clk 0:00:19]} 28. Rxd1+ {[%clk 0:00:12]}  Kc6 {[%clk 0:00:20]} 29. e4 {[%clk 0:00:09]}  Ne3 {[%clk 0:00:15]} 30. Rd3 {[%clk 0:00:09]}  Rf3 {[%clk 0:00:13]} 31. h3 {[%clk 0:00:09]}  Rf1+ {[%clk 0:00:13]} 32. Kh2 {[%clk 0:00:09]}  Nc4 {[%clk 0:00:10]} 33. Kg3 {[%clk 0:00:08]}  Nd6 {[%clk 0:00:09]} 34. e5 {[%clk 0:00:05]}  Ne4+ {[%clk 0:00:09]} 35. Kh4 {[%clk 0:00:06]}  c4 {[%clk 0:00:10]} 36. Rd4 {[%clk 0:00:06]}  Rxf4 {[%clk 0:00:07]} 37. Rxc4+ {[%clk 0:00:06]}  Kd5 {[%clk 0:00:08]} 38. Rb4 {[%clk 0:00:05]}  g5+ {[%clk 0:00:08]} 39. Kh5 {[%clk 0:00:05]}  b6 {[%clk 0:00:09]} 40. Kh6 {[%clk 0:00:03]}  Rf3 {[%clk 0:00:08]} 41. Bf6 {[%clk 0:00:02]}  Rxh3+ {[%clk 0:00:08]} 42. Kg7 {[%clk 0:00:02]}  Nxf6 {[%clk 0:00:04]} 43. exf6 {[%clk 0:00:02]}  Ke6 {[%clk 0:00:02]} 44. Re4+ {[%clk 0:00:03]}  Kd5 {[%clk 0:00:01]} 45. Re7 {[%clk 0:00:04]}  Rg3 {[%clk 0:00:01]} 46. Kxf7 {[%clk 0:00:04]}  Rxg4 {[%clk 0:00:01]} 47. Rxa7 {[%clk 0:00:04]}  Rf4 {[%clk 0:00:02]} 48. Kg6 {[%clk 0:00:04]}  g4 {[%clk 0:00:02]} 49. Rg7 {[%clk 0:00:02]}  Ke6 {[%clk 0:00:01]} 50. Re7+ {[%clk 0:00:01]}  Kd6 {[%clk 0:00:02]} 51. Re3 {[%clk 0:00:01]} 1-0


[Site "https://www.chess.com"]